fUST/lending_fUST_20250727
["ID","MTS","AMOUNT","RATE_DAILY","PERIOD"]
[375277278,1753613455424,-151.0,0.00023078,5]
[375277279,1753613455436,-1389.41,0.00023079,3]
[375277280,1753613455445,-542.19,0.0002317,4]
[375277281,1753613455454,-516.37,0.00023173,4]
[375277282,1753613455464,-1389.41,0.00023179,5]
[375277283,1753613455474,-660.0,0.0002319,2]
[375277284,1753613455483,-151.0,0.0002321,7]
[375277285,1753613455492,-151.0,0.0002321,7]
[375277286,1753613455501,-151.0,0.0002321,7]
[375277287,1753613455510,-4093.36480933,0.0002321,8]
[375277288,1753613455520,-160.0,0.00023261,4]
[375277289,1753613455529,-542.19,0.0002327,5]
[375277290,1753613455540,-516.37,0.00023273,5]
[375277291,1753613455549,-1389.43,0.00023279,4]
[375277292,1753613455558,-667.61,0.00023287,2]
[375277293,1753613455567,-460.0,0.00023287,2]
[375277294,1753613455577,-188.21599993,0.00023287,2]
[375277295,1753613455586,-460.0,0.00023287,2]
[375277296,1753613455595,-460.0,0.00023287,2]
[375277297,1753613455604,-2898.81,0.00023287,2]
[375277298,1753613455614,-460.0,0.00023287,2]
[375277299,1753613455627,-182.20059412,0.00023287,2]
[375277300,1753613455637,-1397.36,0.00023287,2]
[375277301,1753613455647,-751.12,0.00023287,2]
[375277302,1753613455656,-528.64,0.00023287,2]
[375277303,1753613455668,-893.59,0.00023287,2]
[375277304,1753613455677,-501.02,0.00023287,2]
[375277305,1753613455686,-2457.52,0.00023287,2]
[375277306,1753613455697,-818.84,0.00023287,2]
[375277307,1753613455706,-552.49,0.00023287,2]
[375277308,1753613455715,-872.85,0.00023287,2]
[375277309,1753613455724,-1240.56,0.00023287,2]
[375277310,1753613455734,-470.34,0.00023287,2]
[375277311,1753613455743,-702.09,0.00023287,2]
[375277312,1753613455752,-1190.51,0.00023287,2]
[375277313,1753613455761,-1913.66,0.00023287,2]
[375277314,1753613455770,-460.0,0.00023287,2]
[375277315,1753613455780,-460.0,0.00023287,2]
[375277316,1753613455790,-460.9,0.00023287,2]
[375277317,1753613455800,-1290.92,0.00023287,2]
[375277318,1753613455809,-3331.73,0.00023287,2]
[375277319,1753613455819,-1781.4,0.00023287,2]
[375277320,1753613455828,-598.51,0.00023287,2]
[375277321,1753613455839,-1489.24,0.00023287,2]
[375277322,1753613455849,-1348.54,0.00023287,2]
[375277323,1753613455952,-533.33,0.00023287,2]
[375277324,1753613455962,-491.78,0.00023287,2]
[375277325,1753613455973,-560.49,0.00023287,2]
[375277326,1753613455983,-1775.79,0.00023287,2]
[375277327,1753613455992,-460.0,0.00023287,2]
[375277328,1753613456002,-460.0,0.00023287,2]
[375277329,1753613456011,-460.0,0.00023287,2]
[375277330,1753613456020,-941.06,0.00023287,2]
[375277331,1753613456029,-507.94,0.00023287,2]
[375277332,1753613456039,-460.0,0.00023287,2]
[375277333,1753613456049,-460.0,0.00023287,2]
[375277334,1753613456059,-460.0,0.00023287,2]
[375277335,1753613456069,-602.02,0.00023287,2]
[375277336,1753613456078,-500.0,0.00023288,2]
[375277337,1753613456088,-500.0,0.00023288,2]
[375277338,1753613456099,-4400.24,0.000233,7]
[375277339,1753613456109,-20677.78,0.000233,2]
[375277340,1753613456119,-500.0,0.00023356,2]
[375277341,1753613456128,-399.126493,0.00023358,8]
[375277342,1753613456138,-542.22,0.0002337,4]
[375277343,1753613456148,-516.37,0.00023373,4]
[375277344,1753613456157,-2533.22,0.000234,7]
[375277345,1753613456166,-4093.36480933,0.00023417,9]
[375277346,1753613456175,-151.0,0.00023462,6]
[375277347,1753613456184,-516.37,0.00023473,4]
[375277348,1753613456193,-381.5,0.00023493,2]
[375277349,1753613456202,-168.0,0.00023527,2]
[375277350,1753613456212,-667.61,0.00023561,2]
[375277351,1753613456221,-460.0,0.00023561,2]
[375277352,1753613456230,-460.0,0.00023561,2]
[375277353,1753613456239,-460.0,0.00023561,2]
[375277354,1753613456249,-2898.81,0.00023561,2]
[375277355,1753613456259,-460.0,0.00023561,2]
[375277356,1753613456268,-1397.36,0.00023561,2]
[375277357,1753613456278,-751.12,0.00023561,2]
[375277358,1753613456289,-528.64,0.00023561,2]
[375277359,1753613456298,-272.570894,0.00023561,7]
[375277360,1753613456307,-893.59,0.00023561,2]
[375277361,1753613456317,-151.0,0.00023561,7]
[375277362,1753613456326,-501.02,0.00023561,2]
[375277363,1753613456336,-2457.52,0.00023561,2]
[375277364,1753613456345,-818.84,0.00023561,2]
[375277365,1753613456355,-552.49,0.00023561,2]
[375277366,1753613456364,-872.85,0.00023561,2]
[375277367,1753613456373,-151.0,0.00023561,7]
[375277368,1753613456383,-1240.56,0.00023561,2]
[375277369,1753613456391,-470.34,0.00023561,2]
[375277370,1753613456401,-702.09,0.00023561,2]
[375277371,1753613456411,-1190.51,0.00023561,2]
[375277372,1753613456421,-1913.66,0.00023561,2]
[375277373,1753613456430,-460.0,0.00023561,2]
[375277374,1753613456439,-457.38234388,0.00023561,2]
[375277375,1753613456449,-460.9,0.00023561,2]
[375277376,1753613456459,-1290.92,0.00023561,2]
[375277377,1753613456469,-3331.73,0.00023561,2]
[375277378,1753613456478,-1781.4,0.00023561,2]
[375277379,1753613456487,-598.51,0.00023561,2]
[375277380,1753613456496,-1489.24,0.00023561,2]
[375277381,1753613456506,-1348.54,0.00023561,2]
[375277382,1753613456516,-533.33,0.00023561,2]
[375277383,1753613456526,-491.78,0.00023561,2]
[375277384,1753613456537,-560.49,0.00023561,2]
[375277385,1753613456547,-1775.79,0.00023561,2]
[375277386,1753613456556,-460.0,0.00023561,2]
[375277387,1753613456566,-460.0,0.00023561,2]
[375277388,1753613456575,-460.0,0.00023561,2]
[375277389,1753613456585,-941.06,0.00023561,2]
[375277390,1753613456594,-507.94,0.00023561,2]
[375277391,1753613456603,-460.0,0.00023561,2]
[375277392,1753613456612,-460.0,0.00023561,2]
[375277393,1753613456623,-460.0,0.00023561,2]
[375277394,1753613456634,-602.02,0.00023561,2]
[375277395,1753613456644,-500.0,0.00023562,2]
[375277396,1753613456653,-500.0,0.00023562,2]
[375277397,1753613456662,-516.37,0.00023573,7]
[375277398,1753613456672,-798.7,0.000236,7]
[375277399,1753613456681,-4093.36480933,0.00023624,9]
[375277400,1753613456691,-168.0,0.00023628,2]
[375277401,1753613456700,-516.43,0.00023673,3]
[375277402,1753613456710,-214.84090509,0.000237,3]
[375277403,1753613456719,-160.0,0.000237,3]
[375277404,1753613456730,-231.30466539,0.000237,3]
[375277405,1753613456741,-12632.25855046,0.000237,3]
[375277406,1753613456750,-151.0,0.000237,7]
[375277407,1753613456759,-760.0,0.00023738,2]
[375277408,1753613456769,-168.0,0.00023794,2]
[375277409,1753613456778,-151.0,0.00023831,7]
[375277410,1753613456789,-4093.36480933,0.00023831,10]
[375277411,1753613456798,-667.61,0.00023835,2]
[375277412,1753613456807,-460.0,0.00023835,2]
[375277413,1753613456817,-460.0,0.00023835,2]
[375277414,1753613456826,-460.0,0.00023835,2]
[375277415,1753613456835,-2898.81,0.00023835,2]
[375277416,1753613456844,-460.0,0.00023835,2]
[375277417,1753613456854,-1397.36,0.00023835,2]
[375277418,1753613456863,-751.12,0.00023835,2]
[375277419,1753613456872,-528.64,0.00023835,2]
[375277420,1753613456882,-893.59,0.00023835,2]
[375277421,1753613456892,-501.02,0.00023835,2]
[375277422,1753613456901,-2457.52,0.00023835,2]
[375277423,1753613456911,-818.84,0.00023835,2]
[375277424,1753613456919,-552.49,0.00023835,2]
[375277425,1753613456929,-872.85,0.00023835,2]
[375277426,1753613456938,-1240.56,0.00023835,2]
[375277427,1753613456947,-470.34,0.00023835,2]
[375277428,1753613456956,-702.09,0.00023835,2]
[375277429,1753613456966,-1190.51,0.00023835,2]
[375277430,1753613456975,-1913.66,0.00023835,2]
[375277431,1753613456985,-460.0,0.00023835,2]
[375277432,1753613456995,-460.9,0.00023835,2]
[375277433,1753613457004,-1290.92,0.00023835,2]
[375277434,1753613457014,-3331.73,0.00023835,2]
[375277435,1753613457023,-1781.4,0.00023835,2]
[375277436,1753613457032,-598.51,0.00023835,2]
[375277437,1753613457044,-1489.24,0.00023835,2]
[375277438,1753613457053,-1348.54,0.00023835,2]
[375277439,1753613457062,-533.33,0.00023835,2]
[375277440,1753613457071,-491.78,0.00023835,2]
[375277441,1753613457081,-560.49,0.00023835,2]
[375277442,1753613457090,-1775.79,0.00023835,2]
[375277443,1753613457099,-460.0,0.00023835,2]
[375277444,1753613457109,-460.0,0.00023835,2]
[375277445,1753613457119,-460.0,0.00023835,2]
[375277446,1753613457128,-941.06,0.00023835,2]
[375277447,1753613457138,-507.94,0.00023835,2]
[375277448,1753613457147,-460.0,0.00023835,2]
[375277449,1753613457157,-460.0,0.00023835,2]
[375277450,1753613457167,-182.95531302,0.00023835,2]
[375277451,1753613457176,-602.02,0.00023835,2]
[375277452,1753613457186,-500.0,0.00023836,2]
[375277453,1753613457195,-500.0,0.00023836,2]
[375277454,1753613457205,-151.0,0.00023847,6]
[375277455,1753613457214,-429.674968,0.00023863,2]
[375277456,1753613457224,-195.510967,0.000239,2]
[375277457,1753613457233,-154.6517,0.00023918,8]
[375277458,1753613457243,-168.0,0.00023923,2]
[375277459,1753613457252,-600.0,0.0002397,2]
[375277460,1753613457262,-477.07289566,0.00024,3]
[375277461,1753613457271,-216.01841554,0.00024,7]
[375277462,1753613457281,-160.0,0.00024,7]
[375277463,1753613457295,-231.30466539,0.00024,7]
[375277464,1753613457304,-526.50274803,0.00024,7]
[375277465,1753613457313,-4093.36480933,0.00024038,10]
[375277466,1753613457323,-600.0,0.00024043,2]
[375277467,1753613457333,-500.0,0.00024045,2]
[375277468,1753613457343,-1100.0,0.00024053,2]
[375277469,1753613457353,-600.0,0.00024104,2]
[375277470,1753613457362,-667.61,0.00024109,2]
[375277471,1753613457371,-162.37214242,0.00024109,2]
[375277472,1753613457381,-208.04156859,0.00024109,2]
[375277473,1753613457390,-831.33410808,0.00024109,2]
[375277474,1753613457399,-460.0,0.00024109,2]
[375277475,1753613457408,-460.0,0.00024109,2]
[375277476,1753613457417,-2898.81,0.00024109,2]
[375277477,1753613457426,-460.0,0.00024109,2]
[375277478,1753613457436,-1397.36,0.00024109,2]
[375277479,1753613457446,-751.12,0.00024109,2]
[375277480,1753613457455,-528.64,0.00024109,2]
[375277481,1753613457464,-893.59,0.00024109,2]
[375277482,1753613457474,-501.02,0.00024109,2]
[375277483,1753613457483,-2457.52,0.00024109,2]
[375277484,1753613457493,-818.84,0.00024109,2]
[375277485,1753613457503,-552.49,0.00024109,2]
[375277486,1753613457512,-872.85,0.00024109,2]
[375277487,1753613457522,-1240.56,0.00024109,2]
[375277488,1753613457531,-470.34,0.00024109,2]
[375277489,1753613457544,-702.09,0.00024109,2]
[375277490,1753613457553,-1190.51,0.00024109,2]
[375277491,1753613457563,-1913.66,0.00024109,2]
[375277492,1753613457572,-460.0,0.00024109,2]
[375277493,1753613457582,-460.9,0.00024109,2]
[375277494,1753613457592,-1290.92,0.00024109,2]
[375277495,1753613457602,-3331.73,0.00024109,2]
[375277496,1753613457613,-1781.4,0.00024109,2]
[375277497,1753613457628,-598.51,0.00024109,2]
[375277498,1753613457642,-1489.24,0.00024109,2]
[375277499,1753613457652,-1348.54,0.00024109,2]
[375277500,1753613457663,-533.33,0.00024109,2]
[375277501,1753613457673,-491.78,0.00024109,2]
[375277502,1753613457682,-560.49,0.00024109,2]
[375277503,1753613457693,-1775.79,0.00024109,2]
[375277504,1753613457707,-460.0,0.00024109,2]
[375277505,1753613457717,-460.0,0.00024109,2]
[375277506,1753613457726,-460.0,0.00024109,2]
[375277507,1753613457736,-941.06,0.00024109,2]
[375277508,1753613457745,-507.94,0.00024109,2]
[375277509,1753613457754,-460.0,0.00024109,2]
[375277510,1753613457763,-460.0,0.00024109,2]
[375277511,1753613457773,-602.02,0.00024109,2]
[375277512,1753613457783,-500.0,0.0002411,2]
[375277513,1753613457794,-500.0,0.0002411,2]
[375277514,1753613457804,-154.6517,0.00024118,6]
[375277515,1753613457813,-500.0,0.00024126,2]
[375277516,1753613457822,-500.0,0.00024128,2]
[375277517,1753613457832,-168.0,0.00024137,2]
[375277518,1753613457841,-577.9763186,0.00024137,2]
[375277519,1753613457851,-1100.0,0.00024138,2]
[375277520,1753613457861,-4000.0,0.00024193,4]
[375277521,1753613457870,-1100.0,0.00024198,2]
[375277522,1753613457880,-3510.91136505,0.00024208,2]
[375277523,1753613457890,-500.0,0.00024215,2]
[375277524,1753613457900,-600.0,0.0002422,2]
[375277525,1753613457910,-151.0,0.00024231,6]
[375277526,1753613457919,-4093.36480933,0.00024245,10]
[375277527,1753613457931,-381.5,0.00024246,2]
[375277528,1753613457940,-600.0,0.00024248,2]
[375277529,1753613457950,-1100.0,0.00024283,2]
[375277530,1753613457960,-860.0,0.00024286,2]
[375277531,1753613457970,-312.16666667,0.000243,10]
[375277532,1753613457980,-526.50274803,0.000243,10]
[375277533,1753613457989,-600.0,0.00024333,2]
[375277534,1753613457998,-1100.0,0.00024338,2]
[375277535,1753613458007,-1100.0,0.00024373,2]
[375277536,1753613458016,-842.41102259,0.00024383,2]
[375277537,1753613458025,-667.61,0.00024383,2]
[375277538,1753613458119,-236.17309388,0.00024383,2]
[375277539,1753613458129,-460.0,0.00024383,2]
[375277540,1753613458138,-2898.81,0.00024383,2]
[375277541,1753613458148,-463.63054911,0.00024383,2]
[375277542,1753613458158,-1397.36,0.00024383,2]
[375277543,1753613458167,-751.12,0.00024383,2]
[375277544,1753613458177,-528.64,0.00024383,2]
[375277545,1753613458187,-893.59,0.00024383,2]
[375277546,1753613458196,-501.02,0.00024383,2]
[375277547,1753613458206,-2457.52,0.00024383,2]
[375277548,1753613458215,-818.84,0.00024383,2]
[375277549,1753613458224,-552.49,0.00024383,2]
[375277550,1753613458233,-872.85,0.00024383,2]
[375277551,1753613458243,-1240.56,0.00024383,2]
[375277552,1753613458253,-470.34,0.00024383,2]
[375277553,1753613458263,-702.09,0.00024383,2]
[375277554,1753613458272,-151.0,0.00024383,7]
[375277555,1753613458282,-151.0,0.00024383,7]
[375277556,1753613458294,-1190.51,0.00024383,2]
[375277557,1753613458305,-151.0,0.00024383,7]
[375277558,1753613458314,-1913.66,0.00024383,2]
[375277559,1753613458324,-378.04823496,0.00024383,2]
[375277560,1753613458333,-460.9,0.00024383,2]
[375277561,1753613458342,-155.0,0.00024383,2]
[375277562,1753613458351,-1290.92,0.00024383,2]
[375277563,1753613458360,-3331.73,0.00024383,2]
[375277564,1753613458370,-1781.4,0.00024383,2]
[375277565,1753613458381,-598.51,0.00024383,2]
[375277566,1753613458391,-1489.24,0.00024383,2]
[375277567,1753613458400,-1348.54,0.00024383,2]
[375277568,1753613458410,-533.33,0.00024383,2]
[375277569,1753613458419,-491.78,0.00024383,2]
[375277570,1753613458429,-560.49,0.00024383,2]
[375277571,1753613458438,-1775.79,0.00024383,2]
[375277572,1753613458448,-460.0,0.00024383,2]
[375277573,1753613458458,-460.0,0.00024383,2]
[375277574,1753613458467,-367.73,0.00024383,2]
[375277575,1753613458477,-941.06,0.00024383,2]
[375277576,1753613458486,-507.94,0.00024383,2]
[375277577,1753613458496,-460.0,0.00024383,2]
[375277578,1753613458506,-460.0,0.00024383,2]
[375277579,1753613458517,-602.02,0.00024383,2]
[375277580,1753613458526,-500.0,0.00024384,2]
[375277581,1753613458538,-500.0,0.00024384,2]
[375277582,1753613458547,-500.0,0.00024391,2]
[375277583,1753613458557,-151.0,0.000244,9]
[375277584,1753613458568,-600.0,0.00024416,2]
[375277585,1753613458578,-154.6517,0.0002442,9]
[375277586,1753613458588,-154.6517,0.00024427,2]
[375277587,1753613458598,-722.93,0.00024434,6]
[375277588,1753613458608,-600.0,0.00024437,2]
[375277589,1753613458619,-2155.0,0.0002444,2]
[375277590,1753613458631,-969.0,0.0002444,2]
[375277591,1753613458641,-154.6517,0.00024449,7]
[375277592,1753613458652,-4093.36480933,0.00024452,11]
[375277593,1753613458662,-600.0,0.0002447,2]
[375277594,1753613458671,-600.0,0.00024499,2]
[375277595,1753613458680,-128930.41148876,0.000245,4]
[375277596,1753613458746,-516.36,0.00020547,2]
[375277597,1753613458755,-516.36,0.00020821,2]
[375277598,1753613458765,-516.36,0.00021095,2]
[375277599,1753613458775,-516.36,0.00021369,2]
[375277600,1753613458788,-516.36,0.00021643,2]
[375277601,1753613458797,-201.41,0.00022,2]
[375277602,1753613458807,-201.41,0.000225,2]
[375277603,1753613458815,-201.41,0.00022955,2]
[375277604,1753613458825,-201.41,0.00023432,2]
[375277605,1753613458834,-201.41,0.00023909,2]
[375277606,1753613458843,-201.41,0.00024387,2]
[375277607,1753613458853,-14328.24472875,0.000245,4]
[375277608,1753613458927,-1.00037896,0.000245,4]
[375277609,1753613458939,-680.90757339,0.000245,4]
[375277610,1753613458951,-5881.73483103,0.000245,4]
[375277612,1753613683167,351.065057,0.00013699,2]
[375277614,1753613835440,150.0,0.000187,2]
[375277615,1753614059911,4325.5736482,0.00018219,2]
[375277616,1753614123917,150.0,0.00018489,2]
[375277617,1753614293394,8829.47807234,0.00018075,2]
[375277618,1753614293419,16070.52192766,0.00018075,2]
[375277619,1753614302445,3929.47807234,0.0001895,2]
[375277620,1753614302468,1070.52192766,0.0001895,2]
[375277621,1753614383381,445.298891,0.00018073,2]
[375277622,1753614444174,-837.13758042,0.00018978,2]
[375277623,1753614444197,-837.0,0.00019067,2]
[375277624,1753614444218,-1200.0,0.00019067,2]
[375277625,1753614444239,-300.0,0.00019067,2]
[375277626,1753614444263,-672.33,0.00019068,3]
[375277627,1753614444283,-336.16,0.00019068,3]
[375277628,1753614444306,-336.16,0.00019068,3]
[375277629,1753614444327,-251.38573648,0.00019068,3]
[375277637,1753614559303,1143.01545681,0.000189,2]
[375277638,1753614567207,302.11718534,0.0001895,2]
[375277668,1753614632250,-1223.01988988,0.00018978,2]
[375277670,1753614632260,-142.10426352,0.00019068,3]
[375277673,1753614632270,-500.0,0.00019068,2]
[375277674,1753614632282,-500.0,0.00019068,2]
[375277675,1753614632291,-214.70774288,0.00019068,2]
[375277676,1753614632301,-300.0,0.0001907,2]
[375277678,1753614632311,-33539.38147001,0.00019071,2]
[375277680,1753614632320,-273.01647951,0.00019071,2]
[375277681,1753614632330,-241.1626047,0.00019071,2]
[375277682,1753614632340,-500.0,0.00019071,2]
[375277683,1753614632349,-154.95284083,0.00019071,2]
[375277684,1753614632359,-500.0,0.00019071,2]
[375277686,1753614632369,-406.94811532,0.00019071,2]
[375277688,1753614632378,-500.0,0.00019071,2]
[375277690,1753614632388,-500.0,0.00019071,2]
[375277691,1753614632397,-500.0,0.00019071,2]
[375277692,1753614632407,-611.19419203,0.00019071,2]
[375277694,1753614632416,-50047.00128659,0.00019072,2]
[375277696,1753614632426,-276.44239105,0.00019073,2]
[375277698,1753614632435,-500.0,0.00019073,2]
[375277700,1753614632445,-500.0,0.00019073,2]
[375277702,1753614632454,-502.23515975,0.00019073,2]
[375277703,1753614632464,-500.0,0.00019073,2]
[375277704,1753614632474,-500.0,0.00019073,2]
[375277705,1753614632483,-500.0,0.00019073,2]
[375277707,1753614632493,-500.0,0.00019073,2]
[375277708,1753614632502,-500.0,0.00019073,2]
[375277709,1753614632512,-500.0,0.00019073,2]
[375277710,1753614632522,-500.0,0.00019073,2]
[375277711,1753614632532,-500.0,0.00019073,2]
[375277712,1753614632541,-553.08798781,0.00019073,2]
[375277713,1753614632551,-502.7062514,0.00019073,2]
[375277714,1753614632560,-330.1665206,0.00019073,2]
[375277715,1753614632569,-500.0,0.00019073,2]
[375277716,1753614632579,-435.62737133,0.00019073,2]
[375277717,1753614632589,-500.0,0.00019073,2]
[375277718,1753614632599,-500.0,0.00019073,2]
[375277719,1753614632608,-487.41818038,0.00019073,2]
[375277721,1753614632618,-500.0,0.00019073,2]
[375277723,1753614632627,-500.0,0.00019073,2]
[375277724,1753614632637,-645.50858471,0.00019073,2]
[375277725,1753614632647,-500.0,0.00019077,2]
[375277726,1753614632656,-500.0,0.00019077,2]
[375277727,1753614632666,-500.0,0.00019077,2]
[375277728,1753614632675,-500.0,0.00019077,2]
[375277729,1753614632685,-301.48007668,0.00019077,2]
[375277730,1753614632695,-500.0,0.00019077,2]
[375277731,1753614632704,-500.0,0.00019077,2]
[375277732,1753614632714,-219.82025924,0.00019077,2]
[375277733,1753614632731,-280.17974076,0.00019077,2]
[375277734,1753614632741,-500.0,0.00019077,2]
[375277735,1753614632751,-500.0,0.00019077,2]
[375277736,1753614632760,-500.0,0.00019077,2]
[375277737,1753614632769,-500.0,0.00019077,2]
[375277738,1753614632780,-500.0,0.00019077,2]
[375277739,1753614632789,-500.0,0.00019077,2]
[375277740,1753614632799,-500.0,0.00019077,2]
[375277741,1753614632808,-500.0,0.00019077,2]
[375277742,1753614632818,-500.0,0.00019077,2]
[375277743,1753614632828,-500.0,0.00019077,2]
[375277744,1753614632837,-500.0,0.00019077,2]
[375277745,1753614632847,-500.0,0.00019077,2]
[375277746,1753614632856,-551.8122383,0.00019077,2]
[375277747,1753614632865,-500.0,0.00019077,2]
[375277748,1753614632875,-500.0,0.00019077,2]
[375277749,1753614632883,-500.0,0.00019077,2]
[375277750,1753614632892,-500.0,0.00019077,2]
[375277751,1753614632902,-500.0,0.00019077,2]
[375277752,1753614632911,-500.0,0.00019077,2]
[375277753,1753614632919,-500.0,0.00019077,2]
[375277754,1753614632929,-500.0,0.00019077,2]
[375277755,1753614632938,-300.0,0.00019077,2]
[375277756,1753614632947,-500.0,0.00019077,2]
[375277757,1753614632956,-500.0,0.00019077,2]
[375277758,1753614632965,-500.0,0.00019077,2]
[375277759,1753614632975,-500.0,0.00019077,2]
[375277760,1753614632985,-500.0,0.00019077,2]
[375277761,1753614632994,-500.0,0.00019077,2]
[375277762,1753614633003,-5022.15539364,0.00019078,2]
[375277763,1753614633015,-5307.94592093,0.00019078,2]
[375277764,1753614633030,-359669.89868543,0.00019078,2]
[375277765,1753614633049,-1008.23729823,0.00019078,2]
[375277766,1753614633069,-645.50858471,0.00019143,2]
[375277767,1753614633080,-500.0,0.00019173,2]
[375277768,1753614633090,-500.0,0.00019173,2]
[375277769,1753614633099,-500.0,0.00019173,2]
[375277770,1753614633109,-500.0,0.00019173,2]
[375277771,1753614633245,-500.0,0.00019173,2]
[375277772,1753614633255,-500.0,0.00019173,2]
[375277773,1753614633265,-500.0,0.00019173,2]
[375277774,1753614633274,-500.0,0.00019173,2]
[375277775,1753614633284,-501.11374782,0.00019173,2]
[375277776,1753614633293,-502.90953708,0.00019173,2]
[375277777,1753614633302,-500.0,0.00019173,2]
[375277778,1753614633312,-500.0,0.00019173,2]
[375277779,1753614633321,-502.52398133,0.00019173,2]
[375277780,1753614633330,-500.0,0.00019173,2]
[375277781,1753614633340,-500.0,0.00019173,2]
[375277782,1753614633350,-500.0,0.00019173,2]
[375277783,1753614633360,-526.82854659,0.00019173,2]
[375277784,1753614633370,-500.0,0.00019173,2]
[375277785,1753614633379,-154.02293776,0.00019173,2]
[375277786,1753614633389,-500.0,0.00019173,2]
[375277787,1753614633399,-160.36400943,0.00019173,2]
[375277788,1753614633408,-500.0,0.00019173,2]
[375277789,1753614633418,-622.09064634,0.00019173,2]
[375277790,1753614633428,-500.0,0.00019173,2]
[375277791,1753614633438,-500.0,0.00019173,2]
[375277792,1753614633449,-500.0,0.00019173,2]
[375277793,1753614633459,-500.0,0.00019173,2]
[375277794,1753614633469,-500.0,0.00019173,2]
[375277795,1753614633479,-500.0,0.00019173,2]
[375277796,1753614633489,-500.87256702,0.00019173,2]
[375277797,1753614633499,-385.62945715,0.00019173,2]
[375277811,1753614638124,-116.26287149,0.00019173,2]
[375277813,1753614638133,-501.04850354,0.00019173,2]
[375277815,1753614638143,-500.0,0.00019173,2]
[375277817,1753614638153,-500.0,0.00019173,2]
[375277819,1753614638163,-500.0,0.00019173,2]
[375277820,1753614638172,-500.0,0.00019173,2]
[375277822,1753614638181,-500.0,0.00019173,2]
[375277824,1753614638191,-502.18653266,0.00019173,2]
[375277826,1753614638200,-500.0,0.00019173,2]
[375277828,1753614638209,-500.0,0.00019173,2]
[375277830,1753614638219,-500.0,0.00019173,2]
[375277832,1753614638229,-500.44982833,0.00019173,2]
[375277834,1753614638239,-188.53538244,0.00019173,2]
[375277835,1753614638249,-500.0,0.00019173,2]
[375277836,1753614638258,-153.96777048,0.00019173,2]
[375277837,1753614638267,-314.48908511,0.00019173,2]
[375277838,1753614638278,-500.88712656,0.00019173,2]
[375277839,1753614638287,-500.0,0.00019173,2]
[375277840,1753614638297,-500.0,0.00019173,2]
[375277841,1753614638306,-500.0,0.00019173,2]
[375277843,1753614638315,-500.0,0.00019173,2]
[375277844,1753614638325,-500.59710166,0.00019173,2]
[375277845,1753614638334,-502.00125028,0.00019173,2]
[375277846,1753614638343,-500.0,0.00019173,2]
[375277847,1753614638352,-173.05801185,0.00019173,2]
[375277848,1753614638361,-500.0,0.00019173,2]
[375277849,1753614638371,-500.0,0.00019173,2]
[375277850,1753614638380,-202.55615842,0.00019173,2]
[375277851,1753614638400,-321.03983184,0.00019173,2]
[375277852,1753614638410,-522.57708468,0.00019173,2]
[375277853,1753614638420,-500.0,0.00019173,2]
[375277854,1753614638429,-500.0,0.00019173,2]
[375277855,1753614638439,-501.14237905,0.00019173,2]
[375277856,1753614638448,-500.0,0.00019173,2]